fUSD/lending_fUSD_20260528
["ID","MTS","AMOUNT","RATE_DAILY","PERIOD"]
[423191204,1779915033000,-216.0,0.00029677,30]
[423191207,1779915033000,-154.0,0.00029679,30]
[423191193,1779915033000,-166.74,0.00029,2]
[423191196,1779915033000,-2000.0,0.00029412,120]
[423191195,1779915033000,-156.3447772,0.00029399,2]
[423191197,1779915033000,-166.66,0.00029496,30]
[423191215,1779915033000,-32083.02562849,0.00029718,2]
[423191200,1779915033000,-4174.1682,0.00029608,2]
[423191201,1779915033000,-27178.0372,0.00029608,2]
[423191198,1779915033000,-8228.53,0.00029598,10]
[423191199,1779915033000,-6857.11,0.00029598,10]
[423191202,1779915033000,-9874.24,0.00029608,10]
[423191224,1779915037000,-656.08956464,0.00027397,2]
[423191223,1779915037000,-194.2956,0.00024658,2]
[423191225,1779915037000,-843.91043536,0.00027397,2]
[423191231,1779915038000,-1478.80776274,0.00029618,2]
[423191230,1779915038000,-654.87971684,0.00029618,2]
[423191229,1779915038000,-453.9142504,0.00029618,2]
[423191228,1779915038000,-673.08796295,0.00029618,2]
[423191227,1779915038000,-184.23,0.00029,7]
[423191226,1779915038000,-184.23,0.00027742,30]
[423191232,1779915038000,-320.10878293,0.00029708,10]
[423191407,1779915040000,-200.0,0.00029,2]
[423191406,1779915040000,-200.0,0.00029,2]
[423191409,1779915040000,-4458.60925957,0.00029718,2]
[423191408,1779915040000,-5394.15121707,0.00029708,10]
[423191410,1779915040000,-345.05,0.00029,2]
[423191413,1779915040000,-10000.0,0.00029718,2]
[423191412,1779915040000,-398.23705892,0.00029718,2]
[423191411,1779915040000,-425.13814,0.00029718,2]
[423191446,1779915043000,-2255.49247889,0.000302,2]
[423191432,1779915043000,-150.0,0.00028855,2]
[423191435,1779915043000,-10130.62683816,0.00029718,2]
[423191433,1779915043000,-150.0,0.00028855,2]
[423191436,1779915043000,-5231.086875,0.00028855,2]
[423191438,1779915043000,-165.037,0.00029781,2]
[423191440,1779915043000,-1272.0,0.00029781,2]
[423191434,1779915043000,-13548.25748659,0.00029718,2]
[423191437,1779915043000,-166222.20707128,0.00029718,2]
[423191441,1779915043000,-525.0,0.00029781,2]
[423191442,1779915043000,-1225.0,0.00029781,2]
[423191443,1779915043000,-6063.0,0.00029781,2]
[423191445,1779915043000,-166.66,0.00030092,30]
[423191444,1779915043000,-3637.0,0.00029781,2]
[423191439,1779915043000,-3548.0,0.00029781,2]
[423191468,1779915046000,-510.0,0.00029789,6]
[423191466,1779915046000,-150.0,0.00028855,2]
[423191465,1779915046000,-150.0,0.00028855,2]
[423191467,1779915046000,-931.0,0.00029781,2]
[423191461,1779915046000,-121.6,0.0002822,5]
[423191464,1779915046000,-150.0,0.00028855,2]
[423191462,1779915046000,-388.4,0.0002822,5]
[423191459,1779915046000,-510.0,0.00025082,2]
[423191460,1779915046000,-510.0,0.00026651,3]
[423191463,1779915046000,-150.0,0.00028855,2]
[423191470,1779915046000,-150.0,0.00030341,2]
[423191472,1779915046000,-166.0,0.00030679,30]
[423191469,1779915046000,-734.99752111,0.000302,2]
[423191473,1779915046000,-154.0,0.00030679,30]
[423191475,1779915046000,-2893.38247889,0.00030745,2]
[423191474,1779915046000,-166.66,0.00030688,30]
[423191477,1779915046000,-951.46598943,0.00030745,2]
[423191476,1779915046000,-283.82629871,0.00030745,2]
[423191478,1779915046000,-655.2041005,0.00030745,2]
[423191481,1779915046000,-2141.67,0.00030745,2]
[423191480,1779915046000,-1279.40585,0.00030745,2]
[423191479,1779915046000,-5375.881,0.00030745,2]
[423191471,1779915046000,-216.0,0.00030677,30]
[423191490,1779915061000,2500.0,0.00027818,120]
[423191491,1779915061000,2500.0,0.00025394,120]
[423191493,1779915061000,2500.0,0.00025711,120]
[423191494,1779915061000,2500.0,0.00025711,120]
[423191492,1779915061000,2500.0,0.00025711,120]
[423191495,1779915063000,300.0,0.00027818,120]
[423191497,1779915064000,210.04695001,0.00025711,120]
[423191496,1779915064000,300.0,0.00025394,120]
[423191498,1779915065000,500.0,0.00027818,120]
[423191499,1779915185000,192.1,0.00026493,120]
[423191500,1779915377000,-151.0,0.000119,2]
[423191501,1779915430000,-151.0,0.00012,2]
[423191502,1779915483000,-150.0,0.00012119,2]
[423191503,1779915521000,186.768561,0.00026962,120]
[423191504,1779915536000,-150.0,0.00012173,2]
[423191505,1779915590000,-150.0,0.00012482,2]
[423191506,1779915643000,-152.0,0.00012549,7]
[423191508,1779915696000,-246.0,0.00012605,2]
[423191509,1779915749000,-157.17511471,0.0001268,2]
[423191510,1779915802000,-160.84933816,0.0001258,2]
[423191511,1779915855000,-500.0,0.0001258,2]
[423191514,1779915896000,156.81,9.083e-05,2]
[423191513,1779915896000,67.26307524,8.434e-05,2]
[423191512,1779915896000,89.54692476,8.434e-05,2]
[423191515,1779915897000,156.81,9.731e-05,2]
[423191519,1779915931000,-77.73478875,0.00012327,2]
[423191518,1779915931000,-156.81,0.00011678,2]
[423191517,1779915931000,-156.81,0.00011029,2]
[423191516,1779915931000,-156.81,0.0001038,2]
[423191520,1779915964000,-79.07521125,0.00012327,2]
[423191521,1779915994000,-372.0681703,0.0001258,2]
[423191522,1779916017000,-127.9318297,0.0001258,2]
[423191523,1779916028000,-188.14260974,0.00012679,2]
[423191524,1779916052000,182.15,0.0001007,2]
[423191526,1779916070000,-33.65674268,0.00012679,2]
[423191527,1779916123000,-332.31,0.00012587,2]
[423191528,1779916177000,-195.3636,0.00012227,2]
[423191529,1779916230000,-2701.52,0.00012367,2]
[423191536,1779916231000,-7047.46,0.00012495,2]
[423191537,1779916231000,-1200.0,0.00012634,2]
[423191539,1779916231000,-300.0,0.00012723,2]
[423191542,1779916231000,-1000.0,0.00012779,2]
[423191538,1779916231000,-2010.0,0.00012635,2]
[423191535,1779916231000,-221.79935241,0.00012395,2]
[423191541,1779916231000,-1378.82,0.00012738,2]
[423191540,1779916231000,-15298.89514465,0.00012724,2]
[423191546,1779916231000,-4802.88,0.00012816,2]
[423191545,1779916231000,-201.44549433,0.00012816,2]
[423191544,1779916231000,-3041.15,0.00012792,2]
[423191550,1779916231000,-159.52,0.00012843,2]
[423191549,1779916231000,-744.05376486,0.0001284,2]
[423191548,1779916231000,-299.99,0.00012816,2]
[423191551,1779916231000,-150.0,0.00012878,2]
[423191547,1779916231000,-999.99,0.00012816,2]
[423191543,1779916231000,-73677.437,0.0001278,2]
[423191563,1779916232000,-500.0,0.00012879,2]
[423191562,1779916232000,-500.0,0.00012879,2]
[423191560,1779916232000,-500.0,0.00012879,2]
[423191557,1779916232000,-500.0,0.00012879,2]
[423191559,1779916232000,-500.0,0.00012879,2]
[423191553,1779916232000,-353.36,0.00012878,2]
[423191555,1779916232000,-9999.99,0.00012878,2]
[423191556,1779916232000,-274.00350829,0.00012879,2]
[423191552,1779916232000,-9999.99,0.00012878,2]
[423191554,1779916232000,-150.99,0.00012878,2]
[423191558,1779916232000,-500.0,0.00012879,2]
[423191561,1779916232000,-500.0,0.00012879,2]
[423191564,1779916232000,-500.0,0.00012879,2]
[423191567,1779916232000,-500.0,0.00012879,2]
[423191591,1779916232000,-5676.02198027,0.0001288,2]
[423191595,1779916232000,-400.0,0.0001288,2]
[423191585,1779916232000,-1890.94475024,0.0001288,2]
[423191572,1779916232000,-27151.4007825,0.0001288,2]
[423191575,1779916232000,-5361.22308961,0.0001288,2]
[423191569,1779916232000,-500.0,0.00012879,2]
[423191565,1779916232000,-492.56921119,0.00012879,2]
[423191570,1779916232000,-73768.34866717,0.0001288,2]
[423191582,1779916232000,-427.65,0.0001288,2]
[423191578,1779916232000,-8475.41891671,0.0001288,2]
[423191568,1779916232000,-500.0,0.00012879,2]
[423191566,1779916232000,-500.0,0.00012879,2]
[423191580,1779916232000,-5941.17315993,0.0001288,2]
[423191674,1779916240000,-800.30798175,0.0001288,2]
[423191672,1779916240000,-2706.235,0.0001288,2]
[423191673,1779916240000,-289.5,0.0001288,2]
[423191671,1779916240000,-70249.20265291,0.0001288,2]
[423191670,1779916240000,-40452.92053555,0.0001288,2]
[423191707,1779916243000,-251.7,0.00012733,2]
[423191706,1779916243000,-151.0,0.000127,2]
[423191709,1779916243000,-834.84277497,0.0001288,2]
[423191711,1779916243000,-388.95551802,0.0001288,2]
[423191710,1779916243000,-3687.84523101,0.0001288,2]
[423191712,1779916243000,-11200.0,0.0001288,2]
[423191708,1779916243000,-258.33999474,0.0001288,2]
[423191736,1779916246000,-3895.56265434,0.0001288,2]
[423191745,1779916246000,-1378.82,0.00013056,2]
[423191747,1779916246000,-3326.0,0.00013064,2]
[423191743,1779916246000,-156.81,0.00012975,2]
[423191733,1779916246000,-151.0,0.000127,2]
[423191739,1779916246000,-66869.81561028,0.0001288,2]
[423191748,1779916246000,-177.2,0.00013077,2]
[423191751,1779916246000,-293.0,0.00013162,2]
[423191741,1779916246000,-165.47,0.0001294,2]
[423191763,1779916247000,-152.0,0.00013574,7]
[423191761,1779916247000,-297.39960159,0.00013506,2]
[423191759,1779916247000,-1834.0,0.00013436,2]
[423191765,1779916247000,-12997.49840998,0.00013599,2]
[423191755,1779916247000,-1271.88001935,0.00013328,2]
[423191757,1779916247000,-1378.82,0.00013375,2]
[423191753,1779916247000,-6640.35385737,0.00013312,2]
[423191769,1779916283000,-150.0,0.00012494,2]
[423191770,1779916303000,500.0,0.00027767,120]
[423191771,1779916337000,-500.0,0.00012127,2]
[423191772,1779916337000,169.415725,7.945e-05,2]
[423191773,1779916390000,-151.0,0.000126,2]
[423191774,1779916443000,-300.0,0.00012724,2]
[423191775,1779916727000,-323.2955,0.00012625,2]
[423191776,1779916781000,-5000.0,0.00012,3]
[423191777,1779916834000,-654.87971684,0.0001258,2]
[423191778,1779916854000,-1345.12028316,0.0001258,2]
[423191781,1779916932000,121.46063294,0.000107,2]
[423191780,1779916932000,150.0,0.000107,2]
[423191784,1779917122000,-1485.14,0.00011812,2]
[423191786,1779917133000,-387.82435574,0.00012205,2]
[423191785,1779917133000,-2323.64,0.00012167,2]
[423191787,1779917218000,-201.74544129,0.00012205,2]
[423191789,1779917226000,-160.0,0.00012224,2]
[423191788,1779917226000,-1.85020297,0.00012205,2]
[423191790,1779917226000,-249.54525541,0.00012368,2]
[423191791,1779917340000,1000.0,0.00027766,120]
[423191795,1779917352000,-77.47234495,0.00011757,2]
[423191794,1779917352000,-150.0,0.00011744,2]
[423191792,1779917352000,-212.08,0.0001172,2]
[423191793,1779917352000,-150.0,0.00011744,2]
[423191796,1779917355000,-2437.326248,0.00011757,2]
[423191798,1779917358000,-62.06564557,0.00011799,2]
[423191797,1779917358000,-133.96140705,0.00011757,2]
[423191799,1779917364000,-304.09435443,0.00011799,2]
[423191800,1779917404000,185.90564557,0.00011788,2]
[423191801,1779917419000,-2167.76435443,0.00011788,2]
[423191832,1779917432000,-500.0,0.00012579,2]
[423191835,1779917432000,-500.0,0.00012579,2]
[423191842,1779917432000,-500.0,0.00012579,2]
[423191836,1779917432000,-500.0,0.00012579,2]
[423191834,1779917432000,-500.0,0.00012579,2]
[423191837,1779917432000,-500.0,0.00012579,2]
[423191844,1779917432000,-500.0,0.00012579,2]
[423191830,1779917432000,-500.0,0.00012579,2]
[423191838,1779917432000,-500.0,0.00012579,2]
[423191846,1779917432000,-500.0,0.00012579,2]
[423191840,1779917432000,-500.0,0.00012579,2]
[423191843,1779917432000,-500.0,0.00012579,2]
[423191852,1779917432000,-500.0,0.00012579,2]
[423191848,1779917432000,-500.0,0.00012579,2]
[423191827,1779917432000,-500.0,0.00012579,2]
[423191850,1779917432000,-563.44674172,0.00012579,2]
[423191851,1779917432000,-500.0,0.00012579,2]
[423191847,1779917432000,-500.0,0.00012579,2]
[423191849,1779917432000,-500.0,0.00012579,2]
[423191853,1779917432000,-500.0,0.00012579,2]
[423191845,1779917432000,-500.0,0.00012579,2]
[423191828,1779917432000,-500.0,0.00012579,2]
[423191821,1779917432000,-154.921,0.00012579,2]
[423191824,1779917432000,-500.0,0.00012579,2]
[423191805,1779917432000,-2701.52,0.00011739,2]
[423191807,1779917432000,-664.30474459,0.00012368,2]
[423191808,1779917432000,-176.76255553,0.00012434,2]
[423191809,1779917432000,-123.23744447,0.00012434,2]
[423191806,1779917432000,-280.570408,0.00012305,2]
[423191810,1779917432000,-576.95343679,0.00012434,2]
[423191811,1779917432000,-623.04656321,0.00012434,2]
[423191812,1779917432000,-85.19767381,0.00012435,2]
[423191813,1779917432000,-1167.93980651,0.00012435,2]
[423191823,1779917432000,-500.0,0.00012579,2]
[423191815,1779917432000,-19103.91382758,0.00012435,2]
[423191817,1779917432000,-150.0,0.00012479,2]
[423191818,1779917432000,-479125.3733,0.0001248,2]
[423191820,1779917432000,-3054.729,0.00012579,2]
[423191854,1779917432000,-500.0,0.00012579,2]
[423191816,1779917432000,-1443.01612763,0.00012435,2]
[423191819,1779917432000,-150.0,0.0001249,2]
[423191825,1779917432000,-500.0,0.00012579,2]
[423191826,1779917432000,-500.0,0.00012579,2]
[423191822,1779917432000,-500.0,0.00012579,2]
[423191814,1779917432000,-830.80761298,0.00012435,2]
[423191855,1779917432000,-500.0,0.00012579,2]
[423191887,1779917432000,-179.83832644,0.00012679,2]
[423191857,1779917432000,-500.0,0.00012579,2]
[423191878,1779917432000,-150.99,0.00012656,2]
[423191882,1779917432000,-913.85,0.00012677,2]
[423191884,1779917432000,-256.91189492,0.00012679,2]
[423191888,1779917432000,-225556.228,0.0001268,2]
[423191885,1779917432000,-500.0,0.00012679,2]
[423191886,1779917432000,-248.66113449,0.00012679,2]
[423191889,1779917432000,-533.81330284,0.00012681,2]
[423191890,1779917432000,-687.05630812,0.00012681,2]
[423191895,1779917432000,-150.0,0.00012737,2]
[423191880,1779917432000,-9999.99,0.00012677,2]
[423191893,1779917432000,-2074.0,0.00012715,2]
[423191894,1779917432000,-3554.20426146,0.00012733,2]
[423191891,1779917432000,-405.71966649,0.00012681,2]
[423191896,1779917432000,-178.95200143,0.00012745,2]
[423191898,1779917432000,-213.93849686,0.0001275,2]
[423191899,1779917432000,-332.31,0.00012778,2]
[423191900,1779917432000,-200.0,0.0001279,2]
[423191901,1779917432000,-400.0,0.000128,4]
[423191902,1779917432000,-192.1,0.00012817,2]
[423191858,1779917432000,-500.0,0.00012579,2]
[423191897,1779917432000,-1516.0,0.00012745,2]
[423191879,1779917432000,-731.90849999,0.0001267,2]
[423191892,1779917432000,-200.0,0.000127,4]
[423191881,1779917432000,-9999.99,0.00012677,2]
[423191883,1779917432000,-489.07481082,0.00012679,2]
[423191856,1779917432000,-500.0,0.00012579,2]
[423191859,1779917432000,-500.0,0.00012579,2]
[423191860,1779917432000,-500.0,0.00012579,2]
[423191863,1779917432000,-206.34467417,0.00012579,2]
[423191862,1779917432000,-500.0,0.00012579,2]
[423191864,1779917432000,-500.0,0.00012579,2]
[423191861,1779917432000,-500.0,0.00012579,2]
[423191867,1779917432000,-500.0,0.00012579,2]
[423191866,1779917432000,-500.0,0.00012579,2]
[423191865,1779917432000,-500.0,0.00012579,2]
[423191869,1779917432000,-21410.5905,0.0001258,2]
[423191868,1779917432000,-2000.0,0.0001258,2]
[423191871,1779917432000,-1001.88,0.0001258,2]
[423191870,1779917432000,-1454.9638,0.0001258,2]
[423191872,1779917432000,-150.0,0.00012614,2]
[423191874,1779917432000,-5000.0,0.0001262,7]
[423191873,1779917432000,-999.99,0.00012614,2]
[423191876,1779917432000,-2886.25821905,0.00012656,2]
[423191875,1779917432000,-299.99,0.0001262,2]
[423191877,1779917432000,-9999.99,0.00012656,2]
[423191934,1779917433000,-152.0,0.0001361,7]
[423191936,1779917433000,-156.81,0.00013624,2]
[423191938,1779917433000,-500.0,0.00013698,2]
[423191937,1779917433000,-1680.0,0.00013677,2]
[423191931,1779917433000,-255.0,0.00013577,2]
[423191939,1779917433000,-500.0,0.00013698,2]
[423191933,1779917433000,-913.85,0.00013604,2]
[423191930,1779917433000,-152.0,0.00013565,7]
[423191941,1779917433000,-500.0,0.00013698,2]
[423191935,1779917433000,-10912.29819698,0.00013619,2]
[423191945,1779917433000,-500.0,0.00013698,2]
[423191952,1779917433000,-500.0,0.00013698,2]
[423191944,1779917433000,-500.0,0.00013698,2]
[423191943,1779917433000,-500.0,0.00013698,2]
[423191942,1779917433000,-302.57,0.00013698,2]
[423191946,1779917433000,-500.0,0.00013698,2]
[423191947,1779917433000,-500.0,0.00013698,2]
[423191948,1779917433000,-500.0,0.00013698,2]
[423191951,1779917433000,-500.0,0.00013698,2]
[423191949,1779917433000,-500.0,0.00013698,2]
[423191953,1779917433000,-500.0,0.00013698,2]
[423191955,1779917433000,-500.0,0.00013698,2]
[423191932,1779917433000,-151.0,0.00013596,2]
[423191940,1779917433000,-500.0,0.00013698,2]
[423191928,1779917433000,-973.87398506,0.0001347,2]
[423191905,1779917433000,-600.0,0.000129,4]
[423191925,1779917433000,-238.0,0.00013232,2]
[423191903,1779917433000,-150.0,0.00012861,2]
[423191904,1779917433000,-694.13676337,0.00012878,2]
[423191907,1779917433000,-1742.019306,0.00012918,2]
[423191957,1779917433000,-500.0,0.00013698,2]
[423191906,1779917433000,-2888.66,0.00012904,2]
[423191908,1779917433000,-986.4638814,0.00012925,2]
[423191909,1779917433000,-205161.3251005,0.00012925,2]
[423191911,1779917433000,-151.0,0.00012925,2]
[423191910,1779917433000,-151.0,0.00012925,2]
[423191912,1779917433000,-298.34547,0.00012925,2]
[423191914,1779917433000,-298.34547,0.00012925,2]
[423191929,1779917433000,-500.0,0.00013484,2]
[423191913,1779917433000,-298.34547,0.00012925,2]
[423191916,1779917433000,-151.0,0.00012925,2]
[423191919,1779917433000,-150.0,0.00012985,2]
[423191921,1779917433000,-4153.35064432,0.00013,5]
[423191922,1779917433000,-2821.5341965,0.0001305,2]
[423191917,1779917433000,-500.0,0.00012936,2]
[423191918,1779917433000,-997.3488508,0.00012936,2]
[423191920,1779917433000,-913.85,0.00012986,2]
[423191924,1779917433000,-500.0,0.0001321,2]
[423191923,1779917433000,-150.0,0.00013108,2]
[423191926,1779917433000,-913.85,0.00013295,2]
[423191927,1779917433000,-255.15440699,0.00013399,2]
[423191915,1779917433000,-298.34547,0.00012925,2]
[423191954,1779917433000,-500.0,0.00013698,2]
[423191950,1779917433000,-500.0,0.00013698,2]
[423191958,1779917433000,-264.34442925,0.00013698,2]
[423191988,1779917433000,-166.66,0.00013836,2]
[423191987,1779917433000,-1922.88087352,0.00013703,2]
[423191986,1779917433000,-231.655548,0.00013699,2]
[423191989,1779917433000,-163.61,0.00013924,2]
[423191990,1779917433000,-166.66,0.00013973,2]
[423191993,1779917433000,-166.66,0.00014247,2]
[423191996,1779917433000,-166.66,0.00014384,2]
[423191998,1779917433000,-156.81,0.00014922,2]
[423191994,1779917433000,-215.46156935,0.00014258,2]
[423191995,1779917433000,-156.81,0.00014273,2]
[423191992,1779917433000,-166.66,0.0001411,2]
[423191991,1779917433000,-250.0,0.00014,2]
[423192000,1779917433000,-129225.73331769,0.00015,2]
[423192002,1779917433000,-151.0,0.00015,2]
[423191999,1779917433000,-200.03348725,0.0001499,2]
[423192004,1779917433000,-304.004321,0.00015,2]
[423192001,1779917433000,-35831.49988837,0.00015,2]
[423192006,1779917433000,-304.004321,0.00015,2]
[423192007,1779917433000,-298.34547,0.00015,2]
[423192008,1779917433000,-298.34547,0.00015,2]
[423192010,1779917433000,-298.34547,0.00015,2]
[423192005,1779917433000,-304.004321,0.00015,2]
[423192009,1779917433000,-298.34547,0.00015,2]
[423191956,1779917433000,-500.0,0.00013698,2]
[423192003,1779917433000,-304.004321,0.00015,2]
[423191985,1779917433000,-304.004321,0.00013699,2]
[423191997,1779917433000,-433.0,0.00014775,2]
[423191981,1779917433000,-200.0,0.00013699,2]
[423191959,1779917433000,-500.0,0.00013698,2]
[423191984,1779917433000,-304.004321,0.00013699,2]
[423191960,1779917433000,-500.0,0.00013698,2]
[423191961,1779917433000,-500.0,0.00013698,2]
[423191962,1779917433000,-500.0,0.00013698,2]
[423191964,1779917433000,-500.0,0.00013698,2]
[423191965,1779917433000,-500.0,0.00013698,2]
[423191963,1779917433000,-500.0,0.00013698,2]
[423191966,1779917433000,-500.0,0.00013698,2]
[423191967,1779917433000,-500.0,0.00013698,2]
[423191973,1779917433000,-603.64,0.00013698,2]
[423191972,1779917433000,-603.64,0.00013698,2]
[423191968,1779917433000,-502.21978273,0.00013698,2]
[423191980,1779917433000,-166.66,0.00013699,2]
[423191971,1779917433000,-603.64,0.00013698,2]
[423191969,1779917433000,-603.64,0.00013698,2]
[423191974,1779917433000,-603.64,0.00013698,2]
[423191977,1779917433000,-500.0,0.00013698,2]
[423191975,1779917433000,-603.64,0.00013698,2]
[423191976,1779917433000,-603.64,0.00013698,2]
[423191983,1779917433000,-304.004321,0.00013699,2]
[423191978,1779917433000,-500.0,0.00013698,2]
[423191979,1779917433000,-500.0,0.00013698,2]
[423191970,1779917433000,-603.64,0.00013698,2]
[423191982,1779917433000,-304.004321,0.00013699,2]
[423192049,1779917434000,-151.0,0.00019178,2]
[423192047,1779917434000,-591.55,0.00019146,2]
[423192050,1779917434000,-151.0,0.00019178,2]
[423192048,1779917434000,-500.0,0.00019146,2]
[423192046,1779917434000,-2129.0,0.0001903,2]
[423192041,1779917434000,-186.768562,0.00018346,2]
[423192040,1779917434000,-194.078939,0.0001803,2]
[423192044,1779917434000,-1519.58,0.0001872,2]
[423192043,1779917434000,-574.6,0.0001841,2]
[423192051,1779917434000,-151.0,0.00019178,2]
[423192045,1779917434000,-2000.0,0.00018856,2]
[423192053,1779917434000,-151.0,0.00019178,2]
[423192065,1779917434000,-152.0,0.0002,2]
[423192056,1779917434000,-177.2,0.00019616,2]
[423192057,1779917434000,-400.0,0.0002,2]
[423192054,1779917434000,-192.1,0.00019226,2]
[423192061,1779917434000,-2267.08684469,0.0002,2]
[423192059,1779917434000,-154.0,0.0002,2]
[423192064,1779917434000,-159.0,0.0002,2]
[423192060,1779917434000,-225.0,0.0002,2]
[423192058,1779917434000,-320.0,0.0002,2]
[423192063,1779917434000,-1201.12423349,0.0002,2]
[423192062,1779917434000,-1000.0,0.0002,2]
[423192066,1779917434000,-213.0,0.0002,2]
[423192042,1779917434000,-22630.87504843,0.00018398,2]
[423192052,1779917434000,-151.0,0.00019178,2]
[423192038,1779917434000,-501.4576724,0.00017676,2]
[423192014,1779917434000,-7285.91,0.00015392,2]
[423192037,1779917434000,-1252.0,0.00017483,2]
[423192070,1779917434000,-446.0,0.0002,2]
[423192011,1779917434000,-151.0,0.00015,2]
[423192015,1779917434000,-22630.87504843,0.00015417,2]
[423192013,1779917434000,-165.47,0.00015076,2]
[423192012,1779917434000,-1631.0,0.00015045,2]
[423192016,1779917434000,-202.3,0.00015553,2]
[423192017,1779917434000,-156.81,0.0001557,2]
[423192018,1779917434000,-300.0,0.00016,2]
[423192019,1779917434000,-736.0,0.00016073,2]
[423192021,1779917434000,-156.81,0.00016219,2]
[423192020,1779917434000,-175.83,0.00016172,2]
[423192023,1779917434000,-202.688267,0.00016438,2]
[423192039,1779917434000,-350.0,0.00018,2]
[423192022,1779917434000,-574.6,0.00016438,2]
[423192026,1779917434000,-202.688267,0.00016438,2]
[423192025,1779917434000,-202.688267,0.00016438,2]
[423192027,1779917434000,-202.688267,0.00016438,2]
[423192029,1779917434000,-202.688267,0.00016438,2]
[423192028,1779917434000,-202.688267,0.00016438,2]
[423192031,1779917434000,-151.0,0.00016438,2]
[423192033,1779917434000,-687.05630811,0.00016479,2]
[423192032,1779917434000,-151.0,0.00016438,2]
[423192030,1779917434000,-202.688267,0.00016438,2]
[423192035,1779917434000,-2323.64,0.00017034,2]
[423192034,1779917434000,-156.81,0.00016868,2]
[423192036,1779917434000,-694.13676336,0.00017382,2]
[423192024,1779917434000,-202.688267,0.00016438,2]
[423192069,1779917434000,-155.0,0.0002,2]
[423192055,1779917434000,-163.61,0.00019472,2]
[423192067,1779917434000,-198.0,0.0002,2]
[423192100,1779917434000,-1545.9448655,0.000213,2]
[423192102,1779917434000,-22630.87504843,0.0002138,2]
[423192103,1779917434000,-1545.9448655,0.000215,2]
[423192105,1779917434000,-175.83,0.00021562,2]
[423192104,1779917434000,-238.34972725,0.000215,2]
[423192101,1779917434000,-238.34972725,0.000213,2]
[423192106,1779917434000,-663.7167608,0.00021698,2]
[423192109,1779917434000,-603.64,0.00021892,2]
[423192108,1779917434000,-151.0,0.00021892,2]
[423192107,1779917434000,-694.13676336,0.00021885,2]
[423192110,1779917434000,-1544.0,0.00021892,2]
[423192113,1779917434000,-152.0,0.00021892,2]
[423192099,1779917434000,-254.66943427,0.000213,2]
[423192114,1779917434000,-152.0,0.00021892,2]
[423192112,1779917434000,-1544.0,0.00021892,2]
[423192115,1779917434000,-152.0,0.00021892,2]
[423192117,1779917434000,-152.0,0.00021892,2]
[423192119,1779917434000,-151.0,0.00021997,2]
[423192123,1779917434000,-160.0,0.00022,2]
[423192120,1779917434000,-450.0,0.00022,2]
[423192118,1779917434000,-5000.0,0.00021918,2]
[423192121,1779917434000,-154.0,0.00022,2]
[423192122,1779917434000,-225.0,0.00022,2]
[423192124,1779917434000,-300.0,0.00022,2]
[423192126,1779917434000,-152.0,0.00022,2]
[423192068,1779917434000,-151.0,0.0002,2]
[423192116,1779917434000,-152.0,0.00021892,2]
[423192098,1779917434000,-2000.0,0.00021213,2]
[423192111,1779917434000,-1544.0,0.00021892,2]
[423192095,1779917434000,-1545.9448655,0.000211,2]
[423192096,1779917434000,-238.34972725,0.000211,2]
[423192071,1779917434000,-1006.0,0.0002,2]